Cogmind - Beta 13 @@@ ROGUE MODE // 2024.04.28 @ 22:41:21 Player: luckinvolved Result: Self-destructed Performance ------------- Evolutions (2) 1000 Regions Visited (8) 1600 Robots Destroyed (46) 230 Value Destroyed (1168) 1168 Prototype IDs (6) 120 Alien Tech Used (0) 0 Bonus (173) 173 TOTAL SCORE: 4291 Bonus ------- High Alert Combat Kills 28 Aligned with FarCom 300 Friendly Fire -155 Cogmind --------- Core Integrity 99/550 Matter 52/300 Energy 140/140 System Corruption 0% Temperature Cool (0) Movement Treading (160) Location -8/Storage Parts ------- > --- POWER (1) -------- Light Deuterium Engine > --- PROPULSION (3) --- Light Treads Light Treads Light Treads > --- UTILITY (5) ------ Large Storage Unit Improved Signal Interpreter Targeting Computer Recoil Stabilizer > --- WEAPON (2) ------- Grenade Launcher Grenade Launcher > --- INVENTORY (15) --- Nuclear Core Core Analyzer Hacking Suite Hacking Suite Beam Rifle Advanced Beam Rifle Improved Assault Rifle Improved Assault Rifle Improved Assault Rifle Improved Assault Rifle Mining Laser Peak State ------------ > --- POWER ------------ Light Deuterium Engine > --- PROPULSION ------- Potential Leg Potential Leg > --- UTILITY ---------- Heat Sink Large Storage Unit Targeting Computer Core Analyzer Recoil Stabilizer > --- WEAPON ----------- YOLO Cannon > --- INVENTORY -------- Light Deuterium Engine Light Deuterium Engine Nuclear Core Core Analyzer Recoil Stabilizer Medium Armor Plating Hacking Suite Advanced Beam Rifle Improved Assault Rifle Improved Assault Rifle Improved Assault Rifle Improved Assault Rifle Grenade Launcher Grenade Launcher Mining Laser [Rating: 57] Favorites ----------- Power Light Deuterium Engine Engine Light Deuterium Engine Propulsion Light Treads Treads Light Treads Leg Potential Leg Utility Targeting Computer Device Recoil Stabilizer Storage Large Storage Unit Processor Targeting Computer Protection Medium Armor Plating Weapon Improved Assault Rifle Energy Gun Improved Medium Laser Energy Cannon YOLO Cannon Ballistic Gun Improved Assault Rifle Launcher Grenade Launcher Build | -11 -10 -10 -9 -9 -9 -8 -8 -8 ------- Run | Yrd Mat Min Mat Min Exi Min Mat Sto Slots Evolved 4 | . . . 2 . . . 2 . Power . | . . . . . . . . . Propulsion 1 | . . . . . . . 1 . Utility 3 | . . . 2 . . . 1 . Weapon . | . . . . . . . . . Parts Attached 49 | 6 1 . 10 1 4 . 16 11 Power 5 | 1 1 . 1 . . . 1 1 Engine 5 | 1 1 . 1 . . . 1 1 Core . | . . . . . . . . . Reactor . | . . . . . . . . . Propulsion 8 | 2 . . . 1 2 . . 3 Treads 6 | 2 . . . 1 . . . 3 Leg 2 | . . . . . 2 . . . Wheel . | . . . . . . . . . Hover . | . . . . . . . . . Flight . | . . . . . . . . . Utility 14 | 1 . . 6 . 1 . 4 2 Device 7 | . . . 3 . 1 . 2 1 Storage 2 | 1 . . 1 . . . . . Processor 4 | . . . 2 . . . 1 1 Hackware . | . . . . . . . . . Protection 1 | . . . . . . . 1 . Artifact . | . . . . . . . . . Weapon 22 | 2 . . 3 . 1 . 11 5 Energy Gun 2 | . . . . . . . 2 . Energy Cannon 5 | . . . . . 1 . 3 1 Ballistic Gun 12 | 2 . . 2 . . . 6 2 Ballistic Cannon . | . . . . . . . . . Launcher 3 | . . . 1 . . . . 2 Special Weapon . | . . . . . . . . . Impact Weapon . | . . . . . . . . . Slashing Weapon . | . . . . . . . . . Piercing Weapon . | . . . . . . . . . Special Melee Weapon . | . . . . . . . . . Unidentified Prototypes 6 | . . . 1 . 3 . 2 . Parts Lost 8 | . . . . 1 . . 1 6 Power 2 | . . . . . . . 1 1 Propulsion 2 | . . . . 1 . . . 1 Utility 3 | . . . . . . . . 3 Weapon 1 | . . . . . . . . 1 Highest Loss Streak 6 | . . . . 1 . . 1 6 To Critical Strikes . | . . . . . . . . . Average Slot Usage (%) 88 | . 85 85 87 100 95 88 81 74 Engine 11 | . 14 14 11 11 11 11 8 9 Treads 17 | . 28 28 22 22 12 . . 6 Leg 4 | . . . . . 9 22 18 10 Device 10 | . . . 20 11 11 11 16 9 Storage 11 | . 14 14 11 11 11 11 9 9 Processor 11 | . . . 1 22 22 22 18 13 Energy Cannon 2 | . . . . . 4 11 7 2 Ballistic Gun 18 | . 28 28 20 22 13 . 2 10 Naked Turns . | . . . . . . . . . Heaviest Build 51 | 13 13 13 34 32 44 44 51 51 Greatest Support 60 | 40 40 40 40 40 60 60 60 60 Greatest Overweight (x) 1 | . . . . . . . . 1 Average Overweight (x) . | . . . . . . . . . Largest Inventory Capacity 15 | 8 8 8 15 15 15 15 15 15 Average Capacity 12 | 6 8 8 11 15 15 15 15 15 Most Carried 15 | 2 7 8 14 15 15 15 15 15 Average Carried 10 | 1 4 7 8 13 13 15 14 11 Final Capacity 15 | 8 8 8 15 15 15 15 15 15 Final Carried 15 | 2 7 8 14 13 15 15 14 11 Class Distribution -------------------- 97% | Mutant Dominant Class ---------------- Mutant | -10/Materials Mutant | -10/Mines Mutant | -9/Materials Mutant | -9/Mines Mutant | -9/Exiles Mutant | -8/Mines Mutant | -8/Materials Mutant | -8/Storage Resources | -11 -10 -10 -9 -9 -9 -8 -8 -8 ----------- Run | Yrd Mat Min Mat Min Exi Min Mat Sto Matter Collected 780 | 188 161 14 79 96 . 14 58 170 Remotely . | . . . . . . . . . Salvage Created 1221 | . 212 33 84 96 . 112 284 400 Parts 78 | . 16 4 8 5 . 4 16 25 Haulers Intercepted 3 | . . . . . . . 2 1 Recyclers Shooed . | . . . . . . . . . Parts Field Recycled . | . . . . . . . . . Retrieved Matter . | . . . . . . . . . Parts Self-Destructed . | . . . . . . . . . Prevented . | . . . . . . . . . Kills | -11 -10 -10 -9 -9 -9 -8 -8 -8 ------- Run | Yrd Mat Min Mat Min Exi Min Mat Sto Combat Hostiles Destroyed 36 | . 7 2 5 2 . 3 6 11 Guns 18 | . 7 2 1 2 . . 2 4 Cannons 4 | . . . . . . 1 2 1 AOE 11 | . . . 4 . . 2 . 5 Classes Destroyed 9 | . 2 . 1 . . 2 3 1 Worker 3 | . . . . . . . 1 2 Builder 2 | . . . . . . . 1 1 Hauler 3 | . . . . . . . 2 1 Operator 1 | . . . . . . . . 1 Swarmer 15 | . 3 2 4 . . . 3 3 Grunt 13 | . 4 . . 2 . 2 . 5 Duelist 2 | . . . . . . 1 . 1 Sentry 6 | . . . 1 . . . 3 2 Zionite 1 | . . . . . . 1 . . Best Kill Streak 8 | . 3 2 4 2 . 3 8 8 Combat Bots Only 4 | . 3 2 4 2 . 3 4 4 Max Kills in Single Turn 3 | . 1 1 3 1 . 2 2 3 Gunslinging . | . . . . . . . . . Exploded 3 | . . . 3 . . 1 . 2 Melee . | . . . . . . . . . Uniques/NPCs Destroyed . | . . . . . . . . . Combat | -11 -10 -10 -9 -9 -9 -8 -8 -8 -------- Run | Yrd Mat Min Mat Min Exi Min Mat Sto Hostile Shots Fired 167 | . 26 11 34 15 2 4 24 51 Missed 50 | . 8 3 10 5 2 2 9 11 Damage Taken 1642 | . 207 64 324 126 . 34 293 594 Core 439 | . 52 6 87 16 . 17 136 125 Absorbed by Shields . | . . . . . . . . . Core Remaining (%) 82 | 100 . 76 . . . 70 . . Volleys Fired 79 | . 20 5 12 6 . 3 10 23 Largest 2 | . 2 2 2 2 . 1 2 2 Hottest 100 | . 40 40 50 46 . 100 100 100 Shots Fired 142 | . 40 10 24 12 . 3 15 38 Gun 122 | . 40 10 22 12 . . 10 28 Cannon 14 | . . . . . . 3 5 6 Launcher 6 | . . . 2 . . . . 4 Special . | . . . . . . . . . Kinetic 122 | . 40 10 22 12 . . 10 28 Thermal 14 | . . . . . . 3 5 6 Explosive 6 | . . . 2 . . . . 4 Electromagnetic . | . . . . . . . . . Robot Hit Streak 20 | . 10 6 20 9 . 2 5 11 Robot Miss Streak 3 | . 3 3 3 1 . 1 1 2 Penetration Max . | . . . . . . . . . Secondary Targets 3 | . 2 . . 1 . . . . Max Gunslinging Chain 1 | . 1 . . 1 . . . . Shots Hit Robots 104 | . 30 6 20 11 . 2 10 25 Core Hits 62 | . 14 2 9 5 . 3 6 23 Critical Kills 5 | . 1 . . . . 1 2 1 Critical Parts Destroyed 1 | . . 1 . . . . . . Critical Strikes 6 | . 1 1 . . . 1 2 1 Meltdown 4 | . . . . . . 1 2 1 Destroy 2 | . 1 1 . . . . . . Melee Attacks . | . . . . . . . . . Impact . | . . . . . . . . . Slashing . | . . . . . . . . . Piercing . | . . . . . . . . . Sneak Attacks . | . . . . . . . . . Combat Hostiles . | . . . . . . . . . Follow-up Attacks . | . . . . . . . . . Damage Inflicted 3652 | . 301 63 323 151 . 551 800 1463 Guns 1157 | . 301 63 195 151 . . 96 351 Cannons 1102 | . . . . . . 327 481 294 Explosions 1382 | . . . 128 . . 213 223 818 Melee . | . . . . . . . . . Ramming 11 | . . . . . . 11 . . Kinetic 1157 | . 301 63 195 151 . . 96 351 Thermal 2168 | . . . . . . 540 676 952 Explosive 316 | . . . 128 . . . 28 160 Electromagnetic . | . . . . . . . . . Impact . | . . . . . . . . . Slashing . | . . . . . . . . . Piercing . | . . . . . . . . . Highest Corruption . | . . . . . . . . . Average Corruption . | . . . . . . . . . Corruption Purged . | . . . . . . . . . Corruption Blocked . | . . . . . . . . . Overload Shots . | . . . . . . . . . Overflow Damage 212 | . . . . . . . 72 140 Projectiles 91 | . . . . . . . 8 83 Explosions 121 | . . . . . . . 64 57 Melee . | . . . . . . . . . Knockbacks . | . . . . . . . . . Impact . | . . . . . . . . . Kinetic . | . . . . . . . . . Secondary . | . . . . . . . . . Self-Inflicted Damage 264 | . . . . . . . 161 103 Shots 3 | . . . . . . . 2 1 Rammed . | . . . . . . . . . Targets Rammed 1 | . . . . . . 1 . . Kicked 1 | . . . . . . 1 . . Crushed . | . . . . . . . . . Highest Temperature 33 | . 18 . 14 27 . 33 4 22 Average Temperature 11 | . 9 . 9 17 . 14 4 7 Received Heat Transfer 549 | . 102 . 153 87 . 18 9 180 Siege Activations . | . . . . . . . . . Robots Corrupted . | . . . . . . . . . Combat Hostiles . | . . . . . . . . . Parts Fried . | . . . . . . . . . Impact Corruptions . | . . . . . . . . . Robots Melted 4 | . . . . . . 1 2 1 Combat Hostiles 3 | . . . . . . . 2 1 Parts Melted 4 | . . . . . . . 3 1 Heat Transferred 2050 | . . . . . . 480 560 1010 Parts Sabotaged . | . . . . . . . . . Parts Stolen . | . . . . . . . . . Parts Stripped . | . . . . . . . . . Power Chain Reactions . | . . . . . . . . . Alert | -11 -10 -10 -9 -9 -9 -8 -8 -8 ------- Run | Yrd Mat Min Mat Min Exi Min Mat Sto Peak Influence 552 | . 215 73 183 50 . 95 399 552 Initial 168 | . . 5 27 . . . 37 168 Average 93 | . 66 50 75 31 . 76 171 357 Maximum Alert Level 2 | . 1 . . . . . 1 2 Low Security (%) 88 | 100 92 100 100 100 . 100 74 18 Level 1 8 | . 7 . . . . . 25 47 Level 2 3 | . . . . . . . . 34 Level 3 . | . . . . . . . . . Level 4 . | . . . . . . . . . Level 5 . | . . . . . . . . . High Security . | . . . . . . . . . Max Security . | . . . . . . . . . Squads Dispatched 1 | . 1 . . . . . . . Investigation 1 | . 1 . . . . . . . Extermination . | . . . . . . . . . Reinforcement . | . . . . . . . . . Assault . | . . . . . . . . . Garrison . | . . . . . . . . . Intercept . | . . . . . . . . . Searches Triggered . | . . . . . . . . . Construction Impeded . | . . . . . . . . . Haulers Reinforced . | . . . . . . . . . Active Scanning Responses . | . . . . . . . . . Cargo Convoy Interrupts . | . . . . . . . . . Stealth | -11 -10 -10 -9 -9 -9 -8 -8 -8 --------- Run | Yrd Mat Min Mat Min Exi Min Mat Sto Distress Signals 3 | . 1 . . . . . . 2 Communications Jammed . | . . . . . . . . . Distress Signals . | . . . . . . . . . Times Spotted 46 | . 10 3 5 2 1 3 8 14 Peak Tracking Total 5 | . 4 3 4 2 2 3 5 5 Tactical Retreats 4 | . . 1 . . 1 . 2 . Traps | -11 -10 -10 -9 -9 -9 -8 -8 -8 ------- Run | Yrd Mat Min Mat Min Exi Min Mat Sto Traps Triggered 2 | . 2 . . . . . . . Indirectly . | . . . . . . . . . Trap Hack Attempts . | . . . . . . . . . Triggered . | . . . . . . . . . Disarmed . | . . . . . . . . . Reprogrammed . | . . . . . . . . . Reused . | . . . . . . . . . Traps Extracted . | . . . . . . . . . Installed 3 | . . . . 3 . . . . Triggered . | . . . . . . . . . Most Traps Carried 2 | . . . . 2 . . . . Machines | -11 -10 -10 -9 -9 -9 -8 -8 -8 ---------- Run | Yrd Mat Min Mat Min Exi Min Mat Sto Machines Disabled 6 | . . . . . . . 2 4 Max in Single Turn 2 | . . . . . . . 1 2 Machines Repaired . | . . . . . . . . . Machines Dismantled . | . . . . . . . . . Machines Sabotaged . | . . . . . . . . . Overloaded Fab Kills . | . . . . . . . . . Hacking | -11 -10 -10 -9 -9 -9 -8 -8 -8 --------- Run | Yrd Mat Min Mat Min Exi Min Mat Sto Machines Accessed 5 | . 1 . 1 . . . 1 2 Terminals 5 | . 1 . 1 . . . 1 2 Fabricators . | . . . . . . . . . Repair Stations . | . . . . . . . . . Recycling Units . | . . . . . . . . . Scanalyzers . | . . . . . . . . . Garrison Access . | . . . . . . . . . Total Hacks 7 | . 1 . 1 . . . 1 4 Successful 1 | . . . 1 . . . . . Failed 6 | . 1 . . . . . 1 4 Catastrophic 4 | . 1 . . . . . 1 2 Database Lockouts . | . . . . . . . . . Manual 8 | . 1 . 1 . 1 . 1 4 Terminals 7 | . 1 . 1 . . . 1 4 Fabricators . | . . . . . . . . . Repair Stations . | . . . . . . . . . Recycling Units . | . . . . . . . . . Scanalyzers . | . . . . . . . . . Garrison Access . | . . . . . . . . . Terminal Hacks 1 | . . . 1 . . . . . Branch Access Points 1 | . . . 1 . . . . . Fabricator Hacks . | . . . . . . . . . Repair Station Hacks . | . . . . . . . . . Recycling Unit Hacks . | . . . . . . . . . Scanalyzer . | . . . . . . . . . Garrison Access Hacks . | . . . . . . . . . Unauthorized Hacks . | . . . . . . . . . Terminals . | . . . . . . . . . Fabricators . | . . . . . . . . . Repair Stations . | . . . . . . . . . Recycling Units . | . . . . . . . . . Scanalyzers . | . . . . . . . . . Garrison Access . | . . . . . . . . . Data Cores Recovered . | . . . . . . . . . Used . | . . . . . . . . . Hacking Detections 4 | . 1 . . . . . 1 2 Full Trace Events . | . . . . . . . . . Feedback Events . | . . . . . . . . . Feedback Blocked . | . . . . . . . . . Robot Schematics Acquired . | . . . . . . . . . Robots Built . | . . . . . . . . . Authchips . | . . . . . . . . . Time . | . . . . . . . . . Total Robot Build Rating . | . . . . . . . . . Part Schematics Acquired . | . . . . . . . . . Parts Built . | . . . . . . . . . Authchips . | . . . . . . . . . Time . | . . . . . . . . . Total Part Build Rating . | . . . . . . . . . Parts Repaired . | . . . . . . . . . Time . | . . . . . . . . . Parts Recycled . | . . . . . . . . . Recycled Matter . | . . . . . . . . . Retrieved Matter . | . . . . . . . . . Retrieved Components . | . . . . . . . . . Parts Scanalyzed . | . . . . . . . . . Part Schematics Acquired . | . . . . . . . . . Parts Damaged . | . . . . . . . . . Bothacking | -11 -10 -10 -9 -9 -9 -8 -8 -8 ------------ Run | Yrd Mat Min Mat Min Exi Min Mat Sto Used RIF Installer . | . . . . . . . . . Robots Hacked . | . . . . . . . . . Non-combat . | . . . . . . . . . Combat . | . . . . . . . . . Robot Hacks Applied . | . . . . . . . . . Relay Couplers Released . | . . . . . . . . . Fabnet Peak Effective % . | . . . . . . . . . Robots Rewired . | . . . . . . . . . Allies Hacked . | . . . . . . . . . Hacks Repelled . | . . . . . . . . . Allies | -11 -10 -10 -9 -9 -9 -8 -8 -8 -------- Run | Yrd Mat Min Mat Min Exi Min Mat Sto Total Allies 1 | . . 1 . . . . . . Largest Group 1 | . . 1 1 . . . . . Highest-Rated Group 31 | . . 31 31 . . . . . Highest-Rated Ally 31 | . . 31 31 . . . . . Total Orders . | . . . . . . . . . Ally Attacks 7 | . . 7 . . . . . . Total Damage 43 | . . 43 . . . . . . Kills . | . . . . . . . . . Allies Corrupted . | . . . . . . . . . Allies Melted 1 | . . . . . . 1 . . Intel | -11 -10 -10 -9 -9 -9 -8 -8 -8 ------- Run | Yrd Mat Min Mat Min Exi Min Mat Sto Robot Analysis Total . | . . . . . . . . . Derelict Logs Recovered 3 | . . 2 . 1 . . . . Drone Launches . | . . . . . . . . . Drone Recoveries . | . . . . . . . . . Exploration | -11 -10 -10 -9 -9 -9 -8 -8 -8 ------------- Run | Yrd Mat Min Mat Min Exi Min Mat Sto Turns Passed 2815 | 88 441 233 483 607 346 128 267 222 Spaces Moved 1740 | 52 228 137 234 363 295 128 206 97 Core 5 | 5 . . . . . . . . Treads 1157 | 47 228 137 234 363 123 . . 25 Legs 578 | . . . . . 172 128 206 72 Wheels . | . . . . . . . . . Hover . | . . . . . . . . . Flight . | . . . . . . . . . Fastest Speed 45 | 50 160 160 160 160 45 45 90 90 Average Speed 136 | 149 160 160 160 160 114 86 90 127 Slowest Speed 240 | 160 160 160 160 160 160 90 90 240 Overloaded Moves 57 | . . . . . 32 9 . 16 Propulsion Burnouts . | . . . . . . . . . Robots Hopped . | . . . . . . . . . Cave-ins Triggered . | . . . . . . . . . Time Travels 1 | . . . . . 1 . . . Exploration Rate (%) 35 | 6 36 37 23 58 61 45 21 30 Regions Visited 8 Branch Regions 5 Pre-discovered Areas . | . . . . . . . . . Known Exits Taken 4 | . . 1 1 1 . 1 . . Unknown Exits Taken 4 | 1 1 . . . 1 . 1 . Scrap Searched 1 | . . . . . . 1 . . Spaces Dug . | . . . . . . . . . Terrain Destroyed 231 | . . . 15 . . 42 88 86 Melee . | . . . . . . . . . Projectile 2 | . . . . . . . 1 1 AOE 229 | . . . 15 . . 42 87 85 Terrain Rammed . | . . . . . . . . . Walls Destroyed . | . . . . . . . . . Machines Disabled . | . . . . . . . . . Actions | -11 -10 -10 -9 -9 -9 -8 -8 -8 --------- Run | Yrd Mat Min Mat Min Exi Min Mat Sto Total 2017 | 59 269 142 320 379 305 135 268 140 Wait 87 | . 13 . 52 1 . 4 12 5 Move 1732 | 51 227 136 233 362 294 127 205 97 Hop . | . . . . . . . . . Pick Up 30 | 2 7 1 6 3 2 . 7 2 Fast Attach 25 | 6 . . 8 . 2 . 5 4 Attach 21 | . 1 . 1 1 2 . 11 5 Detach 11 | . . . 2 . 2 . 6 1 Swap 3 | . . . 1 . . . . 2 Drop 25 | . 1 . 5 3 3 . 12 1 Fire 79 | . 20 5 12 6 . 3 10 23 Melee . | . . . . . . . . . Ram . | . . . . . . . . . Kick 1 | . . . . . . 1 . . Crush . | . . . . . . . . . Escape Stasis . | . . . . . . . . . Rewire . | . . . . . . . . . Trap 3 | . . . . 3 . . . . Miscellaneous . | . . . . . . . . . Route ------- -11/Scrapyard -10/Materials (discovered 2 exits: *Mat / [*Min]) -10/Mines -9/Materials (discovered 3 exits: Mat x2 / *Min) -9/Mines -9/Exiles -8/Mines -8/Materials -8/Storage History --------- Turn | Location | Event 12 | -11/Scrapyard | Discovered new exit (range 15) 89 | -11/Scrapyard | Entered Materials 207 | -10/Materials | Discovered new exit (range 16) 315 | -10/Materials | Build established: Mutant 506 | -10/Materials | Discovered new exit (range 6) 530 | -10/Materials | Entered Mines 533 | -10/Mines | Received a Mining Laser from a helpful Derelict 702 | -10/Mines | Identified exit to Materials 715 | -10/Mines | Learned 2 Materials zone layouts 763 | -10/Mines | Entered Materials 763 | -9/Materials | Accompanied by 1 ally 763 | -9/Materials | Evolved 2 slots: Utility x2 764 | -9/Materials | Identified exit to Materials 1130 | -9/Materials | Identified exit to Mines 1246 | -9/Materials | Entered Mines 1326 | -9/Mines | A weapon hastily lodged in a ceiling crevice suddenly fell to the ground 1684 | -9/Mines | Found a hidden stash of uninstalled traps 1741 | -9/Mines | Identified exit to Exiles 1794 | -9/Mines | Deemed a non-threat by the Exiles lab entrance 1853 | -9/Mines | Entered Exiles 1892 | -9/Exiles | Met 8R-AWN 1922 | -9/Exiles | Met EX-HEX 1980 | -9/Exiles | Met EX-BIN 1997 | -9/Exiles | Aligned with FarCom system 1999 | -9/Exiles | Given EX-Vault access code 2036 | -9/Exiles | Opened EX-Vault 2044 | -9/Exiles | Found Prototype Device 2044 | -9/Exiles | Identified Chronowheel 2044 | -9/Exiles | Activated Chronowheel 2044 | -9/Exiles | Spacetime reconverged on an earlier point 2051 | -9/Exiles | Found Prototype Leg 2053 | -9/Exiles | Found Prototype Leg 2055 | -9/Exiles | Identified Potential Leg (x2) 2061 | -9/Exiles | Found Prototype Energy Cannon 2061 | -9/Exiles | Identified YOLO Cannon 2088 | -9/Exiles | Warned to stay clear of 0b10 Research branches 2089 | -9/Exiles | Exiles lab attacked by MAIN.C 2188 | -9/Exiles | Discovered new exit (range 14) 2199 | -9/Exiles | Stole two prototypes: Potential Leg, YOLO Cannon 2199 | -9/Exiles | Entered Mines 2321 | -8/Mines | Discovered exit to Materials (range 6) 2327 | -8/Mines | Entered Materials 2327 | -8/Materials | Evolved 2 slots: Propulsion x1, Utility x1 2563 | -8/Materials | Discovered new exit (range 14) 2594 | -8/Materials | Entered Storage 2663 | -8/Storage | Core integrity fell below 50% 2693 | -8/Storage | Lost 6 parts (1p1n3u1w) 2744 | -8/Storage | Core integrity fell below 20% 2816 | -8/Storage | Self-destructed Last Messages --------------- 02757_ K-01 Serf collects debris. 02758_ Acquired Lgt. Treads. 02761_ K-01 Serf collects debris. 02765_ Acquired Lgt. Treads. 02766_ K-01 Serf collects debris. 02773_ Dropped Potential Leg. 02773_ Acquired 20 matter. 02775_ K-01 Serf collects debris. 02776_ Acquired Lgt. Treads. 02777_ K-01 Serf collects debris. 02781_ Acquired Imp. Signal Interpreter. 02783_ K-01 Serf collects debris. 02787_ Acquired Beam Rifle. 02788_ K-01 Serf collects debris. 02798_ S-10 Pest destroyed. 02804_ K-01 Serf destroyed. 02804_ S-10 Pest destroyed. 02804_ K-01 Serf collects debris. 02808_ The unstable cave ceiling collapses. 02814_ K-01 Serf collects debris. Map ----- +----------------------------------------------------+ | | | | | | | | | | | | | | | | | | | | | | | | | | | | | ????###########??????????##??????????????????????? | | ????# ] ! #?????????? ??? ?????????????????? | | ????# #?????????? """ """?#??????????????? | | ????# !##????????? """ """ #??????????????? | | ##??# [ "##???????? """ """ ##?????????????? | | *#??# " ##??????# #?????????????? | | *#??# " #??????# Y#??????????????? | | "#### #?????## #??????????????? | | " # " #????## #??????????????? | | """" ;;;;####### # ##??????????????? | | k k % [ * #??Y???????????? | | @ * +??????????????? | | = = w a #??????????????? | | "" ! ; *%#####+### # #??????????????? | | " * #?????? [ #%k ! #??????????????? | | # ""# !#????? # ! #??????????????? | | """ # # ! #???? """ # # #??????????????? | | """ # # = #???" """ # [ #? #??????????????? | | """ # # #??"" """ # ] +?? #??????????????? | | """ # # #??"" """ # #???#??????????????? | | """ # # #??????"" ? #??????????????????? | | # +! #??????? ? #??????????????????? | | ##### !# #???????##? #??????????????????? | | ????# #####?????????? [ #??????????????????? | | ????# #?????????????? #??????????????????? | | ????# #?????????????? ???????????????????? | | ????# #??????????????###?????????????????????? | | ????# #??????????????????????????????????????? | | ????#######??????????????????????????????????????? | | ?????????????????????????????????????????????????? | | ?????????????????????????????????????????????????? | | ?????????????????????????????????????????????????? | | ?????????????????????????????????????????????????? | | ?????????????????????????????????????????????????? | | ?????????????????????????????????????????????????? | | ?????????????????????????????????????????????????? | +----------------------------------------------------+ Best States ------------- Heat Dissipation 48 Energy Generation 14 Energy Capacity 250 Matter Stores 299 Matter Capacity 300 Sight Range 16 Terrain Scan Density 10 Armor Coverage 225 Evasion (%) 66 Targeting Accuracy 10 Core Analysis 6 Recoil Reduction 7 Item Schematics ----------------- None Robot Schematics ------------------ None Fabricated ------------ Nothing Alien Tech Used ----------------- None Achievements -------------- None Challenges ------------ None Game ------ Seed DefenseSniperRipper Manual? 0 Play Time 00:24:18 Cumulative 56.4 hours Start 2024.04.28 @ 20:30:01 End 2024.04.28 @ 22:41:21 Sessions 3 Manual Loads 0 Difficulty Rogue Special Mode None Game No. 92 Rogue 87 Adventurer 5 Explorer 0 Win Type - Total 1 Types 1/0/0/0/0/0/0/0/0 Lore% 25 Gallery% 53 Achievement% 37 Wizard Run 0 Options --------- Layout 0 ASCII 0 Keyboard 0 Movement Mouse Keybinds 0 Fullscreen 1 Font 24/Smallcaps Map View 76x50 Zoom Use 22% Tactical HUD 1 Map Filters NONE Filters NONE Steam 1 RUN: a0636c85-90db-4d3e-9ee1-3e62b6f2475c